fUSD/lending_fUSD_20240628
["ID","MTS","AMOUNT","RATE_DAILY","PERIOD"]
[330532625,1719559844774,-1243.48,0.00019178,2]
[330532626,1719559844783,-500.0,0.00019178,2]
[330532627,1719559844792,-700.82,0.00019178,2]
[330532628,1719559844802,-500.0,0.00019178,2]
[330532629,1719559844811,-2471.45,0.00019178,2]
[330532630,1719559844820,-500.0,0.00019178,2]
[330532631,1719559844829,-500.0,0.00019178,2]
[330532632,1719559844839,-1415.23,0.00019178,2]
[330532633,1719559844848,-566.45,0.00019178,2]
[330532634,1719559844858,-2694.18,0.00019178,2]
[330532635,1719559844867,-500.0,0.00019178,2]
[330532636,1719559844877,-2088.77,0.00019178,2]
[330532637,1719559844886,-957.75,0.00019178,2]
[330532638,1719559844895,-905.86,0.00019178,2]
[330532639,1719559844904,-2488.25,0.00019178,2]
[330532640,1719559844914,-500.0,0.00019178,2]
[330532641,1719559844923,-500.0,0.00019178,2]
[330532642,1719559844933,-723.25,0.00019178,2]
[330532643,1719559844942,-18287.16,0.00019178,2]
[330532644,1719559844951,-1292.78,0.00019178,2]
[330532645,1719559844960,-500.0,0.00019178,2]
[330532646,1719559844970,-500.0,0.00019178,2]
[330532647,1719559844979,-500.0,0.00019178,2]
[330532648,1719559844988,-698.88,0.00019178,2]
[330532649,1719559844997,-1999.89,0.00019178,2]
[330532650,1719559845007,-500.0,0.00019178,2]
[330532651,1719559845017,-2314.22,0.00019178,2]
[330532652,1719559845026,-500.0,0.00019178,2]
[330532653,1719559845035,-1824.18,0.00019178,2]
[330532654,1719559845044,-1431.13,0.00019178,2]
[330532655,1719559845053,-3205.07,0.00019178,2]
[330532656,1719559845063,-1255.4,0.00019178,2]
[330532657,1719559845072,-500.0,0.00019178,2]
[330532658,1719559845081,-680.44,0.00019178,2]
[330532659,1719559845091,-500.0,0.00019178,2]
[330532660,1719559845100,-2861.34,0.00019178,2]
[330532661,1719559845109,-2122.27,0.00019178,2]
[330532662,1719559845119,-618.87,0.00019178,2]
[330532663,1719559845128,-592.88,0.00019178,2]
[330532664,1719559845137,-4835.77,0.00019178,2]
[330532665,1719559845146,-500.0,0.00019178,2]
[330532666,1719559845156,-500.0,0.00019178,2]
[330532667,1719559845166,-500.0,0.00019178,2]
[330532668,1719559845175,-500.0,0.00019178,2]
[330532669,1719559845184,-529.19,0.00019178,2]
[330532670,1719559845194,-529.19,0.00019178,2]
[330532671,1719559845204,-500.0,0.00019178,2]
[330532672,1719559845213,-964.95,0.00019178,2]
[330532673,1719559845223,-502.35,0.00019178,2]
[330532674,1719559845232,-529.19,0.00019178,2]
[330532675,1719559845242,-500.0,0.00019178,2]
[330532676,1719559845251,-529.19,0.00019178,2]
[330532677,1719559845261,-501.65047256,0.00019178,2]
[330532678,1719559845270,-529.19,0.00019178,2]
[330532679,1719559845280,-529.19,0.00019178,2]
[330532680,1719559845289,-529.19,0.00019178,2]
[330532681,1719559845300,-529.19,0.00019178,2]
[330532682,1719559845309,-529.19,0.00019178,2]
[330532683,1719559845318,-500.0,0.00019178,2]
[330532684,1719559845328,-529.19,0.00019178,2]
[330532685,1719559845337,-529.19,0.00019178,2]
[330532686,1719559845346,-529.19,0.00019178,2]
[330532687,1719559845356,-500.0,0.00019178,2]
[330532688,1719559845364,-529.19,0.00019178,2]
[330532689,1719559845374,-500.0,0.00019178,2]
[330532690,1719559845384,-529.19,0.00019178,2]
[330532691,1719559845393,-529.19,0.00019178,2]
[330532692,1719559845403,-728.09,0.00019178,2]
[330532693,1719559845413,-529.19,0.00019178,2]
[330532694,1719559845422,-500.0,0.00019178,2]
[330532695,1719559845431,-529.19,0.00019178,2]
[330532696,1719559845441,-529.19,0.00019178,2]
[330532697,1719559845452,-529.19,0.00019178,2]
[330532698,1719559845464,-2041.84,0.00019178,2]
[330532699,1719559845474,-500.0,0.00019178,2]
[330532700,1719559845786,-529.19,0.00019178,2]
[330532701,1719559845797,-529.19,0.00019178,2]
[330532702,1719559845806,-823.21,0.00019178,2]
[330532703,1719559845816,-529.19,0.00019178,2]
[330532704,1719559845826,-4490.8,0.00019178,2]
[330532705,1719559845836,-529.19,0.00019178,2]
[330532706,1719559845845,-529.37350094,0.00019178,2]
[330532707,1719559845854,-500.0,0.00019178,2]
[330532708,1719559845864,-500.0,0.00019178,2]
[330532709,1719559845873,-500.0,0.00019178,2]
[330532710,1719559845883,-500.0,0.00019178,2]
[330532711,1719559845893,-3416.8,0.00019178,2]
[330532712,1719559845902,-500.0,0.00019178,2]
[330532713,1719559845913,-500.0,0.00019178,2]
[330532714,1719559845922,-500.0,0.00019178,2]
[330532715,1719559845932,-500.0,0.00019178,2]
[330532716,1719559845942,-1720.71,0.00019178,2]
[330532717,1719559845953,-500.0,0.00019178,2]
[330532718,1719559845962,-500.0,0.00019178,2]
[330532719,1719559845972,-6357.69,0.00019178,2]
[330532720,1719559845982,-5216.21,0.00019178,2]
[330532721,1719559845991,-500.0,0.00019178,2]
[330532722,1719559846002,-2000.0,0.00019178,2]
[330532723,1719559846012,-712.89,0.00019178,2]
[330532724,1719559846022,-500.0,0.00019178,2]
[330532725,1719559846031,-518.69108566,0.00019178,2]
[330532726,1719559846042,-565.71,0.00019178,2]
[330532727,1719559846052,-2001.84,0.00019178,2]
[330532728,1719559846061,-4545.48,0.00019178,2]
[330532729,1719559846071,-1165.6,0.00019178,2]
[330532730,1719559846082,-672.83,0.00019178,2]
[330532731,1719559846094,-500.0,0.00019178,2]
[330532732,1719559846107,-3999.18,0.00019178,2]
[330532733,1719559846116,-500.0,0.00019178,2]
[330532734,1719559846126,-2080.75,0.00019178,2]
[330532735,1719559846135,-500.0,0.00019178,2]
[330532736,1719559846147,-1206.39,0.00019178,2]
[330532737,1719559846156,-500.0,0.00019178,2]
[330532738,1719559846166,-3804.98,0.00019178,2]
[330532739,1719559846175,-500.0,0.00019178,2]
[330532740,1719559846184,-500.0,0.00019178,2]
[330532741,1719559846196,-500.0,0.00019178,2]
[330532742,1719559846205,-500.0,0.00019178,2]
[330532743,1719559846214,-1009.85,0.00019178,2]
[330532744,1719559846223,-797.68,0.00019178,2]
[330532745,1719559846233,-500.0,0.00019178,2]
[330532746,1719559846242,-500.0,0.00019178,2]
[330532747,1719559846252,-753.06,0.00019178,2]
[330532748,1719559846261,-500.0,0.00019178,2]
[330532749,1719559846270,-1799.7,0.00019178,2]
[330532750,1719559846280,-1327.98,0.00019178,2]
[330532751,1719559846289,-500.0,0.00019178,2]
[330532752,1719559846298,-638.91,0.00019178,2]
[330532753,1719559846307,-586.30279755,0.00019178,2]
[330532754,1719559846316,-500.0,0.00019178,2]
[330532755,1719559846325,-4934.28,0.00019178,2]
[330532756,1719559846335,-500.0,0.00019178,2]
[330532757,1719559846345,-849.9,0.00019178,2]
[330532758,1719559846355,-500.0,0.00019178,2]
[330532759,1719559846365,-5200.52,0.00019178,2]
[330532760,1719559846374,-2830.92,0.00019178,2]
[330532761,1719559846384,-500.0,0.00019178,2]
[330532762,1719559846394,-563.16,0.00019178,2]
[330532763,1719559846403,-3499.49,0.00019178,2]
[330532764,1719559846413,-500.0,0.00019178,2]
[330532765,1719559846422,-840.28,0.00019178,2]
[330532766,1719559846432,-2753.1,0.00019178,2]
[330532767,1719559846442,-250.0,0.00019178,2]
[330532768,1719559846451,-1148.2,0.00019178,2]
[330532769,1719559846465,-641.57,0.00019178,2]
[330532770,1719559846474,-500.0,0.00019178,2]
[330532771,1719559846484,-500.0,0.00019178,2]
[330532772,1719559846494,-2158.58,0.00019178,2]
[330532773,1719559846505,-3971.85,0.00019178,2]
[330532774,1719559846514,-734.51,0.00019178,2]
[330532775,1719559846523,-2356.43,0.00019178,2]
[330532776,1719559846534,-500.0,0.00019178,2]
[330532777,1719559846545,-500.0,0.00019178,2]
[330532778,1719559846557,-500.0,0.00019178,2]
[330532779,1719559846567,-553.44,0.00019178,2]
[330532780,1719559846577,-895.74,0.00019178,2]
[330532781,1719559846588,-1917.03,0.00019178,2]
[330532782,1719559846598,-500.0,0.00019178,2]
[330532783,1719559846607,-500.0,0.00019178,2]
[330532784,1719559846616,-1013.89,0.00019178,2]
[330532785,1719559846626,-500.0,0.00019178,2]
[330532786,1719559846637,-500.0,0.00019178,2]
[330532787,1719559846647,-500.0,0.00019178,2]
[330532788,1719559846656,-4647.95,0.00019178,2]
[330532789,1719559846666,-591.24,0.00019178,2]
[330532790,1719559846675,-500.0,0.00019178,2]
[330532791,1719559846685,-500.0,0.00019178,2]
[330532792,1719559846695,-500.0,0.00019178,2]
[330532793,1719559846705,-500.0,0.00019178,2]
[330532794,1719559846715,-500.0,0.00019178,2]
[330532795,1719559846725,-500.0,0.00019178,2]
[330532796,1719559846735,-500.0,0.00019178,2]
[330532797,1719559846744,-500.0,0.00019178,2]
[330532798,1719559846754,-571.94,0.00019178,2]
[330532799,1719559846763,-500.0,0.00019178,2]
[330532800,1719559846773,-836.59,0.00019178,2]
[330532801,1719559846782,-500.0,0.00019178,2]
[330532802,1719559846792,-500.0,0.00019178,2]
[330532803,1719559846801,-500.0,0.00019178,2]
[330532804,1719559846810,-500.0,0.00019178,2]
[330532805,1719559846819,-669.42,0.00019178,2]
[330532806,1719559846829,-500.0,0.00019178,2]
[330532807,1719559846839,-767.8,0.00019178,2]
[330532808,1719559846849,-1081.21,0.00019178,2]
[330532809,1719559846859,-1630.84,0.00019178,2]
[330532810,1719559846869,-500.0,0.00019178,2]
[330532811,1719559846879,-500.0,0.00019178,2]
[330532812,1719559846889,-500.0,0.00019178,2]
[330532813,1719559846898,-500.0,0.00019178,2]
[330532814,1719559846908,-500.0,0.00019178,2]
[330532815,1719559846918,-500.0,0.00019178,2]
[330532816,1719559846927,-500.0,0.00019178,2]
[330532817,1719559846937,-647.88,0.00019178,2]
[330532818,1719559846947,-2029.68,0.00019178,2]
[330532819,1719559846957,-500.0,0.00019178,2]
[330532820,1719559846966,-2442.68,0.00019178,2]
[330532821,1719559846977,-500.0,0.00019178,2]
[330532822,1719559846986,-550.54,0.00019178,2]
[330532823,1719559846996,-2398.41,0.00019178,2]
[330532824,1719559847005,-500.0,0.00019178,2]
[330532825,1719559847015,-999.05,0.00019178,2]
[330532827,1719559847025,-2163.18,0.00019178,2]
[330532828,1719559847034,-500.0,0.00019178,2]
[330532829,1719559847044,-1830.25,0.00019178,2]
[330532830,1719559847054,-500.0,0.00019178,2]
[330532831,1719559847065,-500.0,0.00019178,2]
[330532832,1719559847075,-500.0,0.00019178,2]
[330532833,1719559847084,-500.0,0.00019178,2]
[330532834,1719559847094,-645.63,0.00019178,2]
[330532835,1719559847103,-2223.0,0.00019178,2]
[330532836,1719559847114,-482.03524535,0.00019178,2]
[330532837,1719559847123,-500.0,0.00019178,2]
[330532838,1719559847133,-961.32,0.00019178,2]
[330532839,1719559847143,-500.0,0.00019178,2]
[330532840,1719559847152,-500.0,0.00019178,2]
[330532841,1719559847162,-867.87,0.00019178,2]
[330532842,1719559847172,-1156.44,0.00019178,2]
[330532843,1719559847182,-500.0,0.00019178,2]
[330532844,1719559847191,-4736.67,0.00019178,2]
[330532845,1719559847200,-500.0,0.00019178,2]
[330532846,1719559847210,-500.0,0.00019178,2]
[330532847,1719559847219,-2163.6,0.00019178,2]
[330532848,1719559847229,-500.0,0.00019178,2]
[330532849,1719559847239,-500.0,0.00019178,2]
[330532850,1719559847249,-500.0,0.00019178,2]
[330532851,1719559847258,-1801.04,0.00019178,2]
[330532852,1719559847268,-882.18,0.00019178,2]
[330532853,1719559847278,-1234.97,0.00019178,2]
[330532854,1719559847288,-611.19,0.00019178,2]
[330532855,1719559847298,-500.0,0.00019178,2]
[330532856,1719559847308,-500.0,0.00019178,2]
[330532857,1719559847318,-1646.32,0.00019178,2]
[330532858,1719559847328,-1405.09,0.00019178,2]
[330532859,1719559847339,-1281.61,0.00019178,2]
[330532860,1719559847348,-546.23,0.00019178,2]
[330532861,1719559847359,-500.0,0.00019178,2]
[330532862,1719559847368,-500.0,0.00019178,2]
[330532863,1719559847378,-2649.48,0.00019178,2]
[330532864,1719559847388,-1007.57,0.00019178,2]
[330532865,1719559847399,-500.0,0.00019178,2]
[330532866,1719559847410,-1403.56,0.00019178,2]
[330532867,1719559847419,-728.44,0.00019178,2]
[330532868,1719559847429,-1533.86,0.00019178,2]
[330532869,1719559847439,-500.0,0.00019178,2]
[330532870,1719559847450,-1062.03,0.00019178,2]
[330532871,1719559847463,-500.0,0.00019178,2]
[330532872,1719559847472,-500.0,0.00019178,2]
[330532873,1719559847482,-500.0,0.00019178,2]
[330532874,1719559847491,-711.92,0.00019178,2]
[330532875,1719559847502,-3845.06,0.00019178,2]
[330532876,1719559847512,-1197.65,0.00019178,2]
[330532877,1719559847522,-1915.08,0.00019178,2]
[330532878,1719559847533,-500.0,0.00019178,2]
[330532879,1719559847544,-500.0,0.00019178,2]
[330532880,1719559847557,-2377.78,0.00019178,2]
[330532881,1719559847568,-500.0,0.00019178,2]
[330532882,1719559847579,-500.0,0.00019178,2]
[330532883,1719559847589,-1540.56,0.00019178,2]
[330532884,1719559847600,-2605.82,0.00019178,2]
[330532885,1719559847611,-2443.42,0.00019178,2]
[330532886,1719559847622,-1528.45,0.00019178,2]
[330532887,1719559847632,-500.0,0.00019178,2]
[330532888,1719559847641,-1061.6,0.00019178,2]
[330532889,1719559847651,-500.0,0.00019178,2]
[330532890,1719559847661,-7438.97,0.00019178,2]
[330532891,1719559847672,-500.0,0.00019178,2]
[330532892,1719559847682,-680.61,0.00019178,2]
[330532893,1719559847692,-500.0,0.00019178,2]
[330532894,1719559847702,-1065.09,0.00019178,2]
[330532895,1719559847712,-500.0,0.00019178,2]
[330532896,1719559847722,-4237.31,0.00019178,2]
[330532897,1719559847732,-500.0,0.00019178,2]
[330532898,1719559847741,-1389.45,0.00019178,2]
[330532899,1719559847751,-5093.26,0.00019178,2]
[330532900,1719559847760,-500.0,0.00019178,2]
[330532901,1719559847770,-2118.16,0.00019178,2]
[330532902,1719559847779,-500.0,0.00019178,2]
[330532903,1719559847789,-500.0,0.00019178,2]
[330532904,1719559847799,-500.0,0.00019178,2]
[330532905,1719559847809,-603.34,0.00019178,2]
[330532906,1719559847819,-1197.91,0.00019178,2]
[330532907,1719559847828,-500.0,0.00019178,2]
[330532908,1719559847838,-5150.29737481,0.00019178,2]
[330532909,1719559848801,-2057.16262519,0.00019178,2]
[330532910,1719559848811,-500.0,0.00019178,2]
[330532911,1719559848820,-958.51,0.00019178,2]
[330532912,1719559848830,-554.49641707,0.00019178,2]
[330532913,1719559849298,-2569.24358293,0.00019178,2]
[330532914,1719559849307,-500.0,0.00019178,2]
[330532915,1719559849316,-1061.00336463,0.00019178,2]
[330532916,1719559849327,-536.20663537,0.00019178,2]
[330532917,1719559849336,-500.0,0.00019178,2]
[330532918,1719559849346,-500.0,0.00019178,2]
[330532919,1719559849355,-1871.1,0.00019178,2]
[330532920,1719559849364,-560.21,0.00019178,2]
[330532921,1719559849373,-2331.64,0.00019178,2]
[330532922,1719559849382,-2035.49,0.00019178,2]
[330532923,1719559849392,-500.0,0.00019178,2]
[330532924,1719559849401,-1208.6,0.00019178,2]
[330532925,1719559849410,-743.14,0.00019178,2]
[330532926,1719559849419,-1242.41,0.00019178,2]
[330532927,1719559849428,-500.0,0.00019178,2]
[330532928,1719559849438,-500.0,0.00019178,2]
[330532929,1719559849447,-500.0,0.00019178,2]
[330532930,1719559849459,-500.0,0.00019178,2]
[330532931,1719559849470,-537.88,0.00019178,2]
[330532932,1719559849479,-3601.08,0.00019178,2]
[330532933,1719559849488,-500.0,0.00019178,2]
[330532934,1719559849498,-523.98338703,0.00019178,2]
[330532935,1719559849508,-546.86,0.00019178,2]
[330532936,1719559849517,-500.0,0.00019178,2]
[330532937,1719559849527,-1121.37,0.00019178,2]
[330532938,1719559849536,-2269.54,0.00019178,2]
[330532939,1719559849547,-829.49,0.00019178,2]
[330532940,1719559849559,-4832.52,0.00019178,2]
[330532941,1719559849572,-814.11,0.00019178,2]
[330532942,1719559849582,-706.22,0.00019178,2]
[330532943,1719559849591,-500.0,0.00019178,2]
[330532944,1719559849600,-1536.69,0.00019178,2]
[330532945,1719559849610,-500.0,0.00019178,2]
[330532946,1719559849619,-500.0,0.00019178,2]
[330532947,1719559849628,-500.0,0.00019178,2]
[330532948,1719559849637,-2675.29,0.00019178,2]
[330532949,1719559849647,-1224.15,0.00019178,2]
[330532950,1719559849657,-546.89,0.00019178,2]
[330532951,1719559849666,-500.0,0.00019178,2]
[330532952,1719559849676,-4753.46,0.00019178,2]
[330532953,1719559849685,-520.76151197,0.00019178,2]
[330532954,1719559849695,-500.0,0.00019178,2]
[330532955,1719559849704,-500.0,0.00019178,2]
[330532956,1719559849714,-3369.12,0.00019178,2]
[330532957,1719559849723,-719.91,0.00019178,2]
[330532958,1719559849732,-579.87,0.00019178,2]
[330532959,1719559849742,-500.0,0.00019178,2]
[330532960,1719559849751,-500.0,0.00019178,2]
[330532961,1719559849761,-2456.71,0.00019178,2]
[330532962,1719559849770,-1015.36,0.00019178,2]
[330532963,1719559849780,-602.69,0.00019178,2]
[330532964,1719559849789,-1355.5,0.00019178,2]
[330532965,1719559849799,-652.88,0.00019178,2]
[330532966,1719559849810,-1072.1,0.00019178,2]
[330532967,1719559849819,-1468.73,0.00019178,2]
[330532968,1719559849829,-500.0,0.00019178,2]
[330532969,1719559849839,-1709.48,0.00019178,2]
[330532970,1719559849849,-412.85181938,0.00019178,2]
[330532971,1719559849866,-587.14818062,0.00019178,2]
[330532972,1719559849876,-2479.94,0.00019178,2]
[330532973,1719559849885,-500.0,0.00019178,2]
[330532974,1719559849895,-2479.94,0.00019178,2]
[330532975,1719559849904,-1337.32,0.00019178,2]
[330532976,1719559849914,-648.19,0.00019178,2]
[330532977,1719559849924,-500.0,0.00019178,2]
[330532978,1719559849934,-2479.94,0.00019178,2]
[330532979,1719559849943,-2479.94,0.00019178,2]
[330532980,1719559849953,-4134.79,0.00019178,2]
[330532981,1719559849964,-500.0,0.00019178,2]
[330532982,1719559849973,-1983.79,0.00019178,2]
[330532983,1719559849983,-2479.94,0.00019178,2]
[330532984,1719559849993,-875.42,0.00019178,2]
[330532985,1719559850003,-2479.94,0.00019178,2]
[330532986,1719559850012,-1163.37,0.00019178,2]
[330532987,1719559850022,-2479.94,0.00019178,2]
[330532988,1719559850031,-500.0,0.00019178,2]
[330532989,1719559850041,-2479.94,0.00019178,2]
[330532990,1719559850050,-2479.94,0.00019178,2]
[330532991,1719559850060,-500.0,0.00019178,2]
[330532992,1719559850070,-500.0,0.00019178,2]
[330532993,1719559850079,-913.24,0.00019178,2]
[330532994,1719559850089,-500.0,0.00019178,2]
[330532995,1719559850105,-2479.94,0.00019178,2]
[330532996,1719559850125,-500.0,0.00019178,2]
[330532997,1719559850135,-2479.94,0.00019178,2]
[330532998,1719559850145,-754.66,0.00019178,2]
[330532999,1719559850154,-2479.94,0.00019178,2]
[330533000,1719559850164,-500.0,0.00019178,2]
[330533001,1719559850174,-2479.94,0.00019178,2]
[330533002,1719559850184,-1714.1215759,0.00019178,2]
[330533003,1719559850198,-19.7484241,0.00019178,2]
[330533004,1719559850207,-878.35,0.00019178,2]
[330533005,1719559850217,-137.71984592,0.00019178,2]
[330533006,1719559850229,-1955.50015408,0.00019178,2]
[330533007,1719559850238,-500.0,0.00019178,2]
[330533008,1719559850247,-2479.94,0.00019178,2]
[330533009,1719559850257,-1200.78,0.00019178,2]
[330533010,1719559850267,-848.91823772,0.00019178,2]
[330533011,1719559850279,-1186.5122111,0.00019178,2]
[330533012,1719559850358,-1050.51565051,0.00017585,2]
[330533013,1719559850369,-611.48434949,0.00017585,2]
[330533014,1719559850379,-153.76,0.00019168,3]
[330533015,1719559850388,-444.50955118,0.00019178,2]
[330533016,1719559850398,-45.37940412,0.00019178,2]
[330533017,1719559850409,-659.94979241,0.00019178,2]
[330533018,1719559850421,-453.8784,0.00019178,2]
[330533019,1719559850433,-1320.73240347,0.00019178,2]
[330533020,1719559850443,-500.0,0.00019178,2]
[330533021,1719559850455,-3305.01,0.00019178,2]
[330533022,1719559850467,-1130.53,0.00019178,2]
[330533023,1719559850477,-500.0,0.00019178,2]
[330533024,1719559850487,-2479.94,0.00019178,2]
[330533025,1719559850498,-2551.75,0.00019178,2]
[330533026,1719559850508,-2479.94,0.00019178,2]
[330533027,1719559850517,-2479.94,0.00019178,2]
[330533028,1719559850527,-2479.94,0.00019178,2]
[330533029,1719559850539,-500.0,0.00019178,2]
[330533030,1719559850549,-2479.94,0.00019178,2]
[330533031,1719559850560,-2479.94,0.00019178,2]
[330533032,1719559850570,-500.0,0.00019178,2]
[330533033,1719559850580,-2479.94,0.00019178,2]
[330533034,1719559850590,-2480.01986752,0.00019178,2]
[330533035,1719559850599,-500.0,0.00019178,2]
[330533036,1719559850608,-500.0,0.00019178,2]
[330533037,1719559850617,-815.68,0.00019178,2]
[330533038,1719559850627,-500.0,0.00019178,2]
[330533039,1719559850636,-1231.53,0.00019178,2]
[330533040,1719559850646,-2433.34,0.00019178,2]
[330533041,1719559850656,-1733.24,0.00019178,2]
[330533042,1719559850667,-500.0,0.00019178,2]
[330533043,1719559850677,-500.0,0.00019178,2]
[330533044,1719559850687,-1913.7,0.00019178,2]
[330533045,1719559850697,-1596.08,0.00019178,2]
[330533046,1719559850708,-1129.32,0.00019178,2]
[330533047,1719559850718,-571.45,0.00019178,2]
[330533048,1719559850728,-2306.01,0.00019178,2]
[330533049,1719559850738,-500.0,0.00019178,2]
[330533050,1719559850747,-500.0,0.00019178,2]
[330533051,1719559850757,-1459.24,0.00019178,2]
[330533052,1719559850767,-1141.49,0.00019178,2]
[330533053,1719559850776,-886.43,0.00019178,2]
[330533054,1719559850786,-500.0,0.00019178,2]
[330533055,1719559850795,-1127.3,0.00019178,2]
[330533056,1719559850805,-2498.67,0.00019178,2]
[330533057,1719559850814,-1972.7,0.00019178,2]
[330533058,1719559850823,-2061.22,0.00019178,2]
[330533059,1719559850832,-500.0,0.00019178,2]
[330533060,1719559850843,-2271.01,0.00019178,2]
[330533061,1719559850852,-2053.86,0.00019178,2]
[330533062,1719559850862,-3917.9,0.00019178,2]
[330533063,1719559850871,-1191.44,0.00019178,2]
[330533064,1719559850881,-3610.1,0.00019178,2]
[330533065,1719559850890,-500.0,0.00019178,2]
[330533066,1719559850901,-500.0,0.00019178,2]
[330533067,1719559850911,-500.0,0.00019178,2]
[330533068,1719559850920,-500.0,0.00019178,2]
[330533069,1719559850930,-500.0,0.00019178,2]
[330533070,1719559850939,-1534.4,0.00019178,2]
[330533071,1719559850950,-705.1,0.00019178,2]
[330533072,1719559850960,-500.0,0.00019178,2]
[330533073,1719559850970,-500.0,0.00019178,2]
[330533074,1719559850979,-500.0,0.00019178,2]
[330533075,1719559850989,-500.0,0.00019178,2]
[330533076,1719559850999,-1706.86,0.00019178,2]
[330533077,1719559851008,-786.45,0.00019178,2]
[330533078,1719559851017,-5042.22,0.00019178,2]
[330533079,1719559851026,-1218.04,0.00019178,2]
[330533080,1719559851035,-1974.91,0.00019178,2]
[330533081,1719559851043,-4346.52,0.00019178,2]
[330533082,1719559851053,-821.04,0.00019178,2]
[330533083,1719559851062,-500.0,0.00019178,2]
[330533084,1719559851072,-3026.54,0.00019178,2]
[330533085,1719559851084,-500.0,0.00019178,2]
[330533086,1719559851095,-500.0,0.00019178,2]
[330533087,1719559851106,-4082.4,0.00019178,2]
[330533088,1719559851116,-4107.82,0.00019178,2]
[330533089,1719559851126,-4082.4,0.00019178,2]
[330533090,1719559851135,-4082.4,0.00019178,2]
[330533091,1719559851145,-4082.4,0.00019178,2]
[330533092,1719559851155,-4082.4,0.00019178,2]
[330533093,1719559851164,-500.0,0.00019178,2]
[330533094,1719559851173,-538.18,0.00019178,2]
[330533095,1719559851183,-4082.4,0.00019178,2]
[330533096,1719559851192,-4082.4,0.00019178,2]
[330533097,1719559851202,-4082.4,0.00019178,2]
[330533098,1719559851211,-4082.4,0.00019178,2]
[330533099,1719559851221,-4082.4,0.00019178,2]
[330533100,1719559851230,-1723.59,0.00019178,2]
[330533101,1719559851239,-500.0,0.00019178,2]
[330533102,1719559851248,-4082.4,0.00019178,2]
[330533103,1719559851258,-4082.4,0.00019178,2]
[330533104,1719559851267,-4082.4,0.00019178,2]
[330533105,1719559851277,-500.0,0.00019178,2]
[330533106,1719559851286,-4082.4,0.00019178,2]
[330533107,1719559851295,-584.14,0.00019178,2]
[330533108,1719559851305,-1813.59220272,0.00019178,2]
[330533109,1719559851321,-1819.99999776,0.00019178,2]
[330533110,1719559851559,-448.80779952,0.00019178,2]
[330533111,1719559851571,-4082.4,0.00019178,2]
[330533112,1719559851581,-4082.4,0.00019178,2]
[330533113,1719559851591,-4082.4,0.00019178,2]
[330533114,1719559851601,-4082.4,0.00019178,2]
[330533115,1719559851612,-4082.4,0.00019178,2]
[330533116,1719559851622,-500.0,0.00019178,2]
[330533117,1719559851633,-4082.4,0.00019178,2]
[330533118,1719559851643,-500.0,0.00019178,2]
[330533119,1719559851653,-4082.4,0.00019178,2]
[330533120,1719559851662,-3273.47,0.00019178,2]
[330533121,1719559851671,-4082.4,0.00019178,2]
[330533122,1719559851680,-8615.87,0.00019178,2]
[330533123,1719559851690,-500.0,0.00019178,2]
[330533124,1719559851700,-4082.5806949,0.00019178,2]
[330533125,1719559851710,-500.0,0.00019178,2]